[Event "*** Titled Tuesday Blitz"]
[Site "Chess.com"]
[Date "2020.11.03"]
[Round "2"]
[White "Region_07"]
[Black "martynkovaelena"]
[Result "1/2-1/2"]
[WhiteElo "2450"]
[BlackElo "2282"]
[TimeControl "180+1"]
[EndTime "10:19:39 PST"]
[Termination "Game drawn - insufficient material"]

1. d4 {[%clk 0:02:54.6]} 1... Nf6 {[%clk 0:02:59.3]} 2. Bg5 {[%clk 0:02:53.1]}
2... d5 {[%clk 0:02:57.7]} 3. Bxf6 {[%clk 0:02:47.2]} 3... exf6 {[%clk
0:02:57.3]} 4. e3 {[%clk 0:02:46]} 4... c6 {[%clk 0:02:57.1]} 5. c4 {[%clk
0:02:46.1]} 5... Bd6 {[%clk 0:02:55.7]} 6. cxd5 {[%clk 0:02:45.7]} 6... cxd5
{[%clk 0:02:55.1]} 7. Nc3 {[%clk 0:02:46.3]} 7... Be6 {[%clk 0:02:42]} 8. Nge2
{[%clk 0:02:45.3]} 8... O-O {[%clk 0:02:38.3]} 9. g3 {[%clk 0:02:45.3]} 9... Nd7
{[%clk 0:02:35]} 10. Bg2 {[%clk 0:02:44.7]} 10... Nb6 {[%clk 0:02:19.2]} 11. O-O
{[%clk 0:02:43.8]} 11... f5 {[%clk 0:02:16.3]} 12. Qb3 {[%clk 0:02:13.9]} 12...
g6 {[%clk 0:02:08.2]} 13. a4 {[%clk 0:02:03.6]} 13... a5 {[%clk 0:02:04.7]} 14.
Nxd5 {[%clk 0:01:36.2]} 14... Bc7 {[%clk 0:01:04.9]} 15. Nec3 {[%clk 0:01:35.2]}
15... Qd6 {[%clk 0:00:34]} 16. Qb5 {[%clk 0:01:28.3]} 16... Nxd5 {[%clk
0:00:26.6]} 17. Nxd5 {[%clk 0:01:23.1]} 17... Bd8 {[%clk 0:00:26.1]} 18. Rac1
{[%clk 0:01:10.8]} 18... h5 {[%clk 0:00:24.5]} 19. Qc5 {[%clk 0:01:02.4]} 19...
Qxc5 {[%clk 0:00:23.7]} 20. Rxc5 {[%clk 0:01:03.3]} 20... h4 {[%clk 0:00:22.9]}
21. Rfc1 {[%clk 0:00:40.3]} 21... hxg3 {[%clk 0:00:21.8]} 22. hxg3 {[%clk
0:00:39.3]} 22... Kg7 {[%clk 0:00:18.3]} 23. Nc7 {[%clk 0:00:38.5]} 23... Bxc7
{[%clk 0:00:18.1]} 24. Rxc7 {[%clk 0:00:39.4]} 24... Rab8 {[%clk 0:00:15.3]} 25.
d5 {[%clk 0:00:30.7]} 25... Bc8 {[%clk 0:00:14]} 26. Re7 {[%clk 0:00:28.7]}
26... Kf6 {[%clk 0:00:13.1]} 27. Rcc7 {[%clk 0:00:28.9]} 27... b5 {[%clk
0:00:11.8]} 28. axb5 {[%clk 0:00:23.1]} 28... Rxb5 {[%clk 0:00:11.7]} 29. d6
{[%clk 0:00:23.8]} 29... Be6 {[%clk 0:00:11.8]} 30. Ra7 {[%clk 0:00:20.3]} 30...
Rxb2 {[%clk 0:00:11.5]} 31. Rxa5 {[%clk 0:00:18.7]} 31... Rd2 {[%clk 0:00:11.4]}
32. Rc7 {[%clk 0:00:15.1]} 32... Rxd6 {[%clk 0:00:11]} 33. Bf3 {[%clk 0:00:15]}
33... Rfd8 {[%clk 0:00:10.4]} 34. Kg2 {[%clk 0:00:15.1]} 34... R8d7 {[%clk
0:00:10.7]} 35. Rxd7 {[%clk 0:00:14.5]} 35... Rxd7 {[%clk 0:00:10.9]} 36. Ra6
{[%clk 0:00:15]} 36... Rd2 {[%clk 0:00:10.4]} 37. e4 {[%clk 0:00:14.8]} 37...
fxe4 {[%clk 0:00:10.1]} 38. Bxe4 {[%clk 0:00:15.7]} 38... Ke5 {[%clk 0:00:10.2]}
39. Bf3 {[%clk 0:00:13.9]} 39... Bd5 {[%clk 0:00:10.1]} 40. Ra5 {[%clk
0:00:13.6]} 40... Ke6 {[%clk 0:00:10]} 41. Rxd5 {[%clk 0:00:13.4]} 41... Rxd5
{[%clk 0:00:10.1]} 42. Bxd5+ {[%clk 0:00:13.2]} 42... Kxd5 {[%clk 0:00:10.5]}
43. Kf3 {[%clk 0:00:14.1]} 43... Ke5 {[%clk 0:00:11]} 44. Kg4 {[%clk 0:00:14.2]}
44... Kf6 {[%clk 0:00:10.2]} 45. f3 {[%clk 0:00:13.8]} 45... Kg7 {[%clk
0:00:10.4]} 46. Kg5 {[%clk 0:00:13.7]} 46... f6+ {[%clk 0:00:10.7]} 47. Kf4
{[%clk 0:00:14.6]} 47... Kf7 {[%clk 0:00:10.4]} 48. Ke4 {[%clk 0:00:15.5]} 48...
Ke6 {[%clk 0:00:10.6]} 49. g4 {[%clk 0:00:14.8]} 49... f5+ {[%clk 0:00:10.5]}
50. Kf4 {[%clk 0:00:14.1]} 50... fxg4 {[%clk 0:00:09.5]} 51. Kxg4 {[%clk
0:00:14.7]} 51... Kf6 {[%clk 0:00:09.5]} 52. Kf4 {[%clk 0:00:15.1]} 52... g5+
{[%clk 0:00:09.9]} 53. Kg4 {[%clk 0:00:14.6]} 53... Kg6 {[%clk 0:00:10.4]} 54.
f4 {[%clk 0:00:14.5]} 54... gxf4 {[%clk 0:00:10.7]} 55. Kxf4 {[%clk 0:00:15.4]}
1/2-1/2

[Event "*** Titled Tuesday Blitz"]
[Site "Chess.com"]
[Date "2020.11.03"]
[Round "2"]
[White "anon569"]
[Black "Das_Virus_2020"]
[Result "1/2-1/2"]
[WhiteElo "2239"]
[BlackElo "2426"]
[TimeControl "180+1"]
[EndTime "10:19:39 PST"]
[Termination "Game drawn by repetition"]

1. e4 {[%clk 0:03:00.9]} 1... e6 {[%clk 0:02:58.5]} 2. Nf3 {[%clk 0:02:59.5]}
2... d5 {[%clk 0:02:58]} 3. Nc3 {[%clk 0:02:58.1]} 3... Nf6 {[%clk 0:02:56.7]}
4. e5 {[%clk 0:02:57.6]} 4... Nfd7 {[%clk 0:02:56.3]} 5. d4 {[%clk 0:02:56.9]}
5... c5 {[%clk 0:02:56]} 6. dxc5 {[%clk 0:02:53.7]} 6... Nc6 {[%clk 0:02:54.4]}
7. Bf4 {[%clk 0:02:50.1]} 7... Nxc5 {[%clk 0:02:50.4]} 8. h4 {[%clk 0:02:34.7]}
8... h6 {[%clk 0:02:48.3]} 9. Qd2 {[%clk 0:02:31.6]} 9... a6 {[%clk 0:02:28.9]}
10. a3 {[%clk 0:02:28]} 10... b5 {[%clk 0:02:27.1]} 11. b4 {[%clk 0:02:26.2]}
11... Ne4 {[%clk 0:02:20.8]} 12. Nxe4 {[%clk 0:02:22.1]} 12... dxe4 {[%clk
0:02:21.7]} 13. Qxd8+ {[%clk 0:02:22.3]} 13... Nxd8 {[%clk 0:02:21.4]} 14. Nd2
{[%clk 0:02:10.1]} 14... Bb7 {[%clk 0:02:20.7]} 15. c4 {[%clk 0:02:08.4]} 15...
bxc4 {[%clk 0:02:17.9]} 16. Nxc4 {[%clk 0:02:03.7]} 16... Nc6 {[%clk 0:02:17.5]}
17. Rd1 {[%clk 0:01:57.2]} 17... Be7 {[%clk 0:02:14.2]} 18. Be2 {[%clk
0:01:45.1]} 18... Rd8 {[%clk 0:02:04.8]} 19. Be3 {[%clk 0:01:39.9]} 19... Rxd1+
{[%clk 0:02:01.7]} 20. Kxd1 {[%clk 0:01:35.1]} 20... O-O {[%clk 0:02:01.1]} 21.
Kc2 {[%clk 0:01:35]} 21... Rd8 {[%clk 0:01:56.7]} 22. Kc3 {[%clk 0:01:32.2]}
22... Rd5 {[%clk 0:01:28]} 23. f4 {[%clk 0:00:59.3]} 23... f6 {[%clk 0:01:20]}
24. Nb6 {[%clk 0:00:46.3]} 24... Rd8 {[%clk 0:01:19.4]} 25. Bc4 {[%clk
0:00:45.6]} 25... Kf7 {[%clk 0:01:10.3]} 26. f5 {[%clk 0:00:14.2]} 26... Nxe5
{[%clk 0:01:09.6]} 27. Bxe6+ {[%clk 0:00:14]} 27... Ke8 {[%clk 0:01:06.8]} 28.
Bd4 {[%clk 0:00:14.3]} 28... Ng4 {[%clk 0:00:59.7]} 29. Re1 {[%clk 0:00:12.8]}
29... Bd6 {[%clk 0:00:54.5]} 30. Nc4 {[%clk 0:00:12.5]} 30... Bg3 {[%clk
0:00:51.9]} 31. Re2 {[%clk 0:00:12.6]} 31... Bxh4 {[%clk 0:00:50.3]} 32. Na5
{[%clk 0:00:12]} 32... Ba8 {[%clk 0:00:49.3]} 33. Bb6 {[%clk 0:00:10.8]} 33...
Rd1 {[%clk 0:00:47.8]} 34. Bc5 {[%clk 0:00:07.3]} 34... Ne5 {[%clk 0:00:46.2]}
35. Nc4 {[%clk 0:00:06.6]} 35... Rd3+ {[%clk 0:00:45.7]} 36. Kc2 {[%clk
0:00:06.1]} 36... Nxc4 {[%clk 0:00:42.8]} 37. Bxc4 {[%clk 0:00:05.6]} 37... Rd8
{[%clk 0:00:42]} 38. Kb3 {[%clk 0:00:03.4]} 38... Bb7 {[%clk 0:00:41.3]} 39. a4
{[%clk 0:00:02.4]} 39... Bg5 {[%clk 0:00:40.1]} 40. b5 {[%clk 0:00:01.9]} 40...
axb5 {[%clk 0:00:40.3]} 41. Bxb5+ {[%clk 0:00:02.6]} 41... Kf7 {[%clk
0:00:39.1]} 42. a5 {[%clk 0:00:03.2]} 42... Rc8 {[%clk 0:00:38.1]} 43. Kb4
{[%clk 0:00:03.8]} 43... Bd5 {[%clk 0:00:35.5]} 44. a6 {[%clk 0:00:04.3]} 44...
Rd8 {[%clk 0:00:31.9]} 45. a7 {[%clk 0:00:04.9]} 45... Ba8 {[%clk 0:00:30.8]}
46. Bb6 {[%clk 0:00:05.5]} 46... Rc8 {[%clk 0:00:30.3]} 47. Bc4+ {[%clk
0:00:06.1]} 47... Kf8 {[%clk 0:00:29.6]} 48. Bc5+ {[%clk 0:00:06.7]} 48... Ke8
{[%clk 0:00:29.9]} 49. Bb5+ {[%clk 0:00:07.4]} 49... Kd8 {[%clk 0:00:28.8]} 50.
Bb6+ {[%clk 0:00:07.5]} 50... Ke7 {[%clk 0:00:28.3]} 51. Bc5+ {[%clk 0:00:08.1]}
51... Kf7 {[%clk 0:00:27.9]} 52. Bc4+ {[%clk 0:00:07.9]} 52... Ke8 {[%clk
0:00:28]} 53. Bb5+ {[%clk 0:00:08.1]} 53... Kf7 {[%clk 0:00:27.4]} 54. Bc4+
{[%clk 0:00:08.2]} 54... Ke8 {[%clk 0:00:27.4]} 1/2-1/2

[Event "*** Titled Tuesday Blitz"]
[Site "Chess.com"]
[Date "2020.11.03"]
[Round "2"]
[White "WonderChampion"]
[Black "Loy_Konstantin"]
[Result "0-1"]
[WhiteElo "2019"]
[BlackElo "2376"]
[TimeControl "180+1"]
[EndTime "10:19:41 PST"]
[Termination "Loy_Konstantin won on time"]

1. e4 {[%clk 0:03:00.9]} 1... c5 {[%clk 0:02:51.8]} 2. Nf3 {[%clk 0:02:58.4]}
2... d6 {[%clk 0:02:51.5]} 3. Bb5+ {[%clk 0:02:56.5]} 3... Nd7 {[%clk
0:02:50.9]} 4. O-O {[%clk 0:02:54.8]} 4... a6 {[%clk 0:02:50.7]} 5. Bxd7+ {[%clk
0:02:53.6]} 5... Bxd7 {[%clk 0:02:51.6]} 6. Re1 {[%clk 0:02:54.2]} 6... Nf6
{[%clk 0:02:49.4]} 7. d4 {[%clk 0:02:55.1]} 7... cxd4 {[%clk 0:02:49.2]} 8. Nxd4
{[%clk 0:02:56]} 8... g6 {[%clk 0:02:47.9]} 9. Bg5 {[%clk 0:02:51.2]} 9... Bg7
{[%clk 0:02:47.5]} 10. Nc3 {[%clk 0:02:48.4]} 10... O-O {[%clk 0:02:46.9]} 11.
Qd2 {[%clk 0:02:37.5]} 11... Rc8 {[%clk 0:02:35]} 12. Bh6 {[%clk 0:02:31.8]}
12... b5 {[%clk 0:02:34.5]} 13. Bxg7 {[%clk 0:02:19.5]} 13... Kxg7 {[%clk
0:02:35.4]} 14. Rad1 {[%clk 0:02:06.9]} 14... Qc7 {[%clk 0:02:33.2]} 15. f4
{[%clk 0:01:59.5]} 15... b4 {[%clk 0:02:20.5]} 16. Nd5 {[%clk 0:01:51.2]} 16...
Nxd5 {[%clk 0:02:16.2]} 17. exd5 {[%clk 0:01:48.5]} 17... Rfe8 {[%clk
0:02:13.9]} 18. Qxb4 {[%clk 0:01:40.3]} 18... Rb8 {[%clk 0:02:01.1]} 19. Qa3
{[%clk 0:01:30.1]} 19... Qc5 {[%clk 0:01:46]} 20. Qxc5 {[%clk 0:01:21.9]} 20...
dxc5 {[%clk 0:01:46.9]} 21. Nc6 {[%clk 0:01:15.4]} 21... Rxb2 {[%clk 0:01:20.8]}
22. Nxe7 {[%clk 0:01:10.6]} 22... Rxc2 {[%clk 0:01:16.9]} 23. d6 {[%clk
0:01:03.4]} 23... Rc4 {[%clk 0:01:00.8]} 24. Rd5 {[%clk 0:00:37.2]} 24... Rd4
{[%clk 0:00:52.6]} 25. Rxc5 {[%clk 0:00:33.8]} 25... Rxd6 {[%clk 0:00:48.9]} 26.
Rce5 {[%clk 0:00:31.6]} 26... Rb8 {[%clk 0:00:45.4]} 27. Nd5 {[%clk 0:00:21.7]}
27... Be6 {[%clk 0:00:33.2]} 28. Nc3 {[%clk 0:00:19.8]} 28... Rd3 {[%clk
0:00:27.7]} 29. Ne2 {[%clk 0:00:16.9]} 29... Rb2 {[%clk 0:00:25.9]} 30. Ng3
{[%clk 0:00:15.7]} 30... Rdd2 {[%clk 0:00:24.5]} 31. R5e2 {[%clk 0:00:13.8]}
31... Rxe2 {[%clk 0:00:22.6]} 32. Rxe2 {[%clk 0:00:14.7]} 32... Rxa2 {[%clk
0:00:22.8]} 33. Rxa2 {[%clk 0:00:13.4]} 33... Bxa2 {[%clk 0:00:23.7]} 34. Ne4
{[%clk 0:00:14.3]} 34... a5 {[%clk 0:00:18.4]} 35. Nc3 {[%clk 0:00:15.2]} 35...
Bc4 {[%clk 0:00:16.4]} 36. Kf2 {[%clk 0:00:13.8]} 36... Kf6 {[%clk 0:00:13.9]}
37. Ke3 {[%clk 0:00:13.2]} 37... Ke6 {[%clk 0:00:13.7]} 38. Kd4 {[%clk
0:00:12.9]} 38... Bb3 {[%clk 0:00:13.3]} 39. Nb1 {[%clk 0:00:11.5]} 39... a4
{[%clk 0:00:13.1]} 40. Na3 {[%clk 0:00:11]} 40... Kf5 {[%clk 0:00:13.1]} 41. g3
{[%clk 0:00:09.4]} 41... Kg4 {[%clk 0:00:12.9]} 42. Ke3 {[%clk 0:00:03.8]} 42...
Kh3 {[%clk 0:00:13]} 43. Kf3 {[%clk 0:00:02]} 43... Kxh2 {[%clk 0:00:13]} 44.
Kf2 {[%clk 0:00:02.8]} 44... Kh3 {[%clk 0:00:12.9]} 45. Kf3 {[%clk 0:00:03.7]}
45... h5 {[%clk 0:00:12.5]} 0-1

[Event "*** Titled Tuesday Blitz"]
[Site "Chess.com"]
[Date "2020.11.03"]
[Round "2"]
[White "lacafi"]
[Black "frederiksvane"]
[Result "1/2-1/2"]
[WhiteElo "2097"]
[BlackElo "2635"]
[TimeControl "180+1"]
[EndTime "10:19:44 PST"]
[Termination "Game drawn by repetition"]

1. d4 {[%clk 0:03:00.9]} 1... Nf6 {[%clk 0:02:58.4]} 2. Nf3 {[%clk 0:03:01.4]}
2... e6 {[%clk 0:02:55.9]} 3. e3 {[%clk 0:03:01.4]} 3... d5 {[%clk 0:02:52.5]}
4. Bd3 {[%clk 0:03:02]} 4... Bd6 {[%clk 0:02:52.5]} 5. Nbd2 {[%clk 0:03:02.6]}
5... O-O {[%clk 0:02:51.4]} 6. Qe2 {[%clk 0:03:03.3]} 6... c5 {[%clk 0:02:51.1]}
7. c3 {[%clk 0:03:03.4]} 7... Nc6 {[%clk 0:02:50.8]} 8. dxc5 {[%clk 0:03:03.4]}
8... Bxc5 {[%clk 0:02:51]} 9. e4 {[%clk 0:03:04.3]} 9... dxe4 {[%clk 0:02:48.3]}
10. Nxe4 {[%clk 0:03:05.2]} 10... Be7 {[%clk 0:02:48.4]} 11. O-O {[%clk
0:03:04.1]} 11... Qc7 {[%clk 0:02:44.4]} 12. Re1 {[%clk 0:03:02.9]} 12... b6
{[%clk 0:02:43.3]} 13. h3 {[%clk 0:02:58.3]} 13... Bb7 {[%clk 0:02:39.5]} 14.
Neg5 {[%clk 0:02:54.7]} 14... Rad8 {[%clk 0:02:21]} 15. Bc2 {[%clk 0:02:51.9]}
15... h6 {[%clk 0:02:01.8]} 16. Nxe6 {[%clk 0:02:48.3]} 16... fxe6 {[%clk
0:01:55.5]} 17. Qxe6+ {[%clk 0:02:49.2]} 17... Rf7 {[%clk 0:01:43.2]} 18. Bg6
{[%clk 0:02:17.8]} 18... Rf8 {[%clk 0:01:42.6]} 19. Bxf7+ {[%clk 0:02:00.9]}
19... Rxf7 {[%clk 0:01:42.3]} 20. Qc4 {[%clk 0:02:01.5]} 20... Bd6 {[%clk
0:01:15.7]} 21. Be3 {[%clk 0:01:57.6]} 21... Ne5 {[%clk 0:01:07.9]} 22. Nxe5
{[%clk 0:01:42.7]} 22... Bxe5 {[%clk 0:01:07]} 23. Qxc7 {[%clk 0:01:43.4]} 23...
Bxc7 {[%clk 0:01:07.9]} 24. Rad1 {[%clk 0:01:43.7]} 24... Nd5 {[%clk 0:00:57.9]}
25. Bd4 {[%clk 0:01:38.1]} 25... Nf4 {[%clk 0:00:52]} 26. Re8+ {[%clk
0:01:08.4]} 26... Kh7 {[%clk 0:00:50.9]} 27. Rde1 {[%clk 0:01:09]} 27... Bxg2
{[%clk 0:00:18.1]} 28. R1e7 {[%clk 0:01:02.7]} 28... Kg6 {[%clk 0:00:17.5]} 29.
Rxc7 {[%clk 0:00:41.7]} 29... Rxc7 {[%clk 0:00:12.6]} 30. Be5 {[%clk 0:00:42.2]}
30... Rf7 {[%clk 0:00:06]} 31. Bxf4 {[%clk 0:00:41.2]} 31... Bxh3 {[%clk
0:00:06.6]} 32. Be3 {[%clk 0:00:40.7]} 32... Bf5 {[%clk 0:00:06.7]} 33. Bd4
{[%clk 0:00:34.1]} 33... Kh5 {[%clk 0:00:05.9]} 34. Kh2 {[%clk 0:00:27.7]} 34...
g5 {[%clk 0:00:06.2]} 35. Kg3 {[%clk 0:00:25.3]} 35... Kg6 {[%clk 0:00:06.2]}
36. Rd8 {[%clk 0:00:19]} 36... Be6 {[%clk 0:00:04.7]} 37. Rd6 {[%clk 0:00:18.7]}
37... Kf5 {[%clk 0:00:05.1]} 38. a4 {[%clk 0:00:16.9]} 38... h5 {[%clk
0:00:05.2]} 39. a5 {[%clk 0:00:14.6]} 39... h4+ {[%clk 0:00:05.7]} 40. Kh2
{[%clk 0:00:14]} 40... bxa5 {[%clk 0:00:06.2]} 41. Ra6 {[%clk 0:00:14.1]} 41...
Rb7 {[%clk 0:00:05.7]} 42. Rxa5+ {[%clk 0:00:14.1]} 42... Kg4 {[%clk 0:00:04.5]}
43. b4 {[%clk 0:00:13.9]} 43... Rf7 {[%clk 0:00:03.6]} 44. Be3 {[%clk
0:00:13.4]} 44... Bf5 {[%clk 0:00:02.4]} 45. Rxa7 {[%clk 0:00:12]} 45... Rxa7
{[%clk 0:00:02.5]} 46. Bxa7 {[%clk 0:00:12.3]} 46... Bd3 {[%clk 0:00:03]} 47.
Bd4 {[%clk 0:00:12.4]} 47... Bc4 {[%clk 0:00:03.2]} 48. Bc5 {[%clk 0:00:12.4]}
48... Kf3 {[%clk 0:00:03.5]} 49. Bd4 {[%clk 0:00:12.1]} 49... g4 {[%clk
0:00:03.8]} 50. Bc5 {[%clk 0:00:11.8]} 50... Bb5 {[%clk 0:00:04.3]} 51. Bd4
{[%clk 0:00:11.5]} 51... Ke2 {[%clk 0:00:04.8]} 52. Bc5 {[%clk 0:00:09.6]} 52...
Kf3 {[%clk 0:00:05.1]} 53. Bd4 {[%clk 0:00:10]} 53... Bc4 {[%clk 0:00:05.5]} 54.
Bc5 {[%clk 0:00:10.2]} 54... g3+ {[%clk 0:00:05.1]} 55. fxg3 {[%clk 0:00:09.3]}
55... hxg3+ {[%clk 0:00:06]} 56. Kg1 {[%clk 0:00:09.6]} 56... g2 {[%clk
0:00:06.9]} 57. Bd4 {[%clk 0:00:09.7]} 57... Kg3 {[%clk 0:00:07.8]} 58. Bc5
{[%clk 0:00:09.6]} 58... Kf3 {[%clk 0:00:08.7]} 59. Bd4 {[%clk 0:00:09.9]} 59...
Kg3 {[%clk 0:00:09.6]} 60. Bc5 {[%clk 0:00:10.2]} 60... Kf3 {[%clk 0:00:10.5]}
1/2-1/2

[Event "*** Titled Tuesday Blitz"]
[Site "Chess.com"]
[Date "2020.11.03"]
[Round "2"]
[White "annacramling"]
[Black "Agoking701"]
[Result "0-1"]
[WhiteElo "1970"]
[BlackElo "2369"]
[TimeControl "180+1"]
[EndTime "10:19:44 PST"]
[Termination "Agoking701 won on time"]

1. d4 {[%clk 0:03:00.9]} 1... Nf6 {[%clk 0:02:59.4]} 2. c4 {[%clk 0:03:00.1]}
2... e6 {[%clk 0:02:56.9]} 3. Nc3 {[%clk 0:02:57]} 3... Bb4 {[%clk 0:02:56.6]}
4. Qc2 {[%clk 0:02:53.7]} 4... Nc6 {[%clk 0:02:53.4]} 5. Nf3 {[%clk 0:02:52.5]}
5... d6 {[%clk 0:02:50]} 6. e3 {[%clk 0:02:47.6]} 6... O-O {[%clk 0:02:47.7]} 7.
Bd3 {[%clk 0:02:46.4]} 7... e5 {[%clk 0:02:39.8]} 8. d5 {[%clk 0:02:23.5]} 8...
Ne7 {[%clk 0:02:34.2]} 9. O-O {[%clk 0:02:17.8]} 9... Bxc3 {[%clk 0:02:16.8]}
10. bxc3 {[%clk 0:02:18.7]} 10... g6 {[%clk 0:02:12]} 11. e4 {[%clk 0:01:58.1]}
11... Nh5 {[%clk 0:02:06]} 12. g3 {[%clk 0:01:53.1]} 12... f5 {[%clk 0:02:02.1]}
13. Bh6 {[%clk 0:01:47.9]} 13... Rf7 {[%clk 0:01:53.7]} 14. Ng5 {[%clk 0:01:31]}
14... Rf6 {[%clk 0:01:52.1]} 15. Ne6 {[%clk 0:01:15.4]} 15... Bxe6 {[%clk
0:01:48.3]} 16. dxe6 {[%clk 0:01:15]} 16... f4 {[%clk 0:01:40.5]} 17. g4 {[%clk
0:00:51.5]} 17... Ng7 {[%clk 0:01:34.1]} 18. Bxg7 {[%clk 0:00:40.4]} 18... Kxg7
{[%clk 0:01:35]} 19. f3 {[%clk 0:00:38.6]} 19... b6 {[%clk 0:01:27.7]} 20. Qb3
{[%clk 0:00:30.2]} 20... c5 {[%clk 0:01:18.3]} 21. Rad1 {[%clk 0:00:27.8]} 21...
Rxe6 {[%clk 0:01:16.9]} 22. Be2 {[%clk 0:00:27.7]} 22... Qc7 {[%clk 0:01:15.8]}
23. Qc2 {[%clk 0:00:25.2]} 23... g5 {[%clk 0:01:13.3]} 24. Rf2 {[%clk
0:00:23.5]} 24... Rb8 {[%clk 0:01:12.3]} 25. Bf1 {[%clk 0:00:23.4]} 25... Rf6
{[%clk 0:01:11.4]} 26. Rfd2 {[%clk 0:00:21.5]} 26... a6 {[%clk 0:01:10.1]} 27.
a4 {[%clk 0:00:21.2]} 27... Nc6 {[%clk 0:01:05.4]} 28. Rd3 {[%clk 0:00:19]}
28... Na5 {[%clk 0:01:03.6]} 29. Rd5 {[%clk 0:00:18.8]} 29... Kf7 {[%clk
0:00:57.7]} 30. Qf2 {[%clk 0:00:17.1]} 30... Rh6 {[%clk 0:00:54.7]} 31. Qd2
{[%clk 0:00:16.1]} 31... Ke7 {[%clk 0:00:53.5]} 32. Qf2 {[%clk 0:00:07.2]} 32...
Qc6 {[%clk 0:00:51.5]} 33. Qc2 {[%clk 0:00:03.2]} 33... Nb7 {[%clk 0:00:51.3]}
34. Rb1 {[%clk 0:00:02.6]} 34... Nd8 {[%clk 0:00:50.6]} 35. Rdd1 {[%clk
0:00:01.9]} 35... Ne6 {[%clk 0:00:48.2]} 36. a5 {[%clk 0:00:02.2]} 36... Nc7
{[%clk 0:00:39.5]} 37. axb6 {[%clk 0:00:02]} 37... Rxb6 {[%clk 0:00:40.4]} 38.
Rxb6 {[%clk 0:00:02.1]} 38... Qxb6 {[%clk 0:00:40.6]} 39. Rb1 {[%clk 0:00:02.7]}
39... Qa7 {[%clk 0:00:39.4]} 40. Qb3 {[%clk 0:00:02.8]} 40... Rf6 {[%clk
0:00:33.7]} 41. Be2 {[%clk 0:00:03.1]} 41... Rf8 {[%clk 0:00:32.9]} 42. Rd1
{[%clk 0:00:02.8]} 42... Rb8 {[%clk 0:00:31.4]} 43. Qc2 {[%clk 0:00:03.2]} 43...
Qb6 {[%clk 0:00:31]} 44. Qd2 {[%clk 0:00:03.6]} 44... Qc6 {[%clk 0:00:30]} 45.
Bf1 {[%clk 0:00:04]} 45... Rb3 {[%clk 0:00:29.1]} 46. Rc1 {[%clk 0:00:04]} 46...
Qb6 {[%clk 0:00:29.3]} 47. Qc2 {[%clk 0:00:04.3]} 47... a5 {[%clk 0:00:29.2]}
48. Ra1 {[%clk 0:00:04.1]} 48... Rb2 {[%clk 0:00:25.6]} 49. Qd3 {[%clk
0:00:03.9]} 49... Qa6 {[%clk 0:00:21.2]} 50. Be2 {[%clk 0:00:03.3]} 50... a4
{[%clk 0:00:20.9]} 51. Rd1 {[%clk 0:00:03.3]} 51... a3 {[%clk 0:00:20.1]} 52.
Ra1 {[%clk 0:00:03.4]} 52... a2 {[%clk 0:00:19.9]} 53. Kf2 {[%clk 0:00:03]}
53... Qa3 {[%clk 0:00:19.2]} 54. Rc1 {[%clk 0:00:01.1]} 54... a1=Q {[%clk
0:00:18.1]} 55. Rxa1 {[%clk 0:00:01.3]} 55... Qxa1 {[%clk 0:00:19]} 0-1

[Event "*** Titled Tuesday Blitz"]
[Site "Chess.com"]
[Date "2020.11.03"]
[Round "2"]
[White "Revnov"]
[Black "NeverW84M8"]
[Result "0-1"]
[WhiteElo "2698"]
[BlackElo "2493"]
[TimeControl "180+1"]
[EndTime "10:19:45 PST"]
[Termination "NeverW84M8 won by resignation"]

1. e4 {[%clk 0:03:00.9]} 1... e5 {[%clk 0:02:59.9]} 2. Nf3 {[%clk 0:03:00.4]}
2... Nc6 {[%clk 0:03:00.3]} 3. Bc4 {[%clk 0:03:00.4]} 3... Bc5 {[%clk
0:03:00.1]} 4. d3 {[%clk 0:02:59.5]} 4... Nf6 {[%clk 0:03:00.5]} 5. Nc3 {[%clk
0:02:59.2]} 5... d6 {[%clk 0:03:00.8]} 6. Na4 {[%clk 0:02:56.9]} 6... Bb6 {[%clk
0:02:58.7]} 7. c3 {[%clk 0:02:57.1]} 7... O-O {[%clk 0:02:57.6]} 8. O-O {[%clk
0:02:55.9]} 8... Ne7 {[%clk 0:02:57.1]} 9. Re1 {[%clk 0:02:48.4]} 9... Ng6
{[%clk 0:02:56.9]} 10. b4 {[%clk 0:02:40.8]} 10... c6 {[%clk 0:02:48.2]} 11.
Nxb6 {[%clk 0:02:34.1]} 11... axb6 {[%clk 0:02:49.1]} 12. h3 {[%clk 0:02:22.7]}
12... b5 {[%clk 0:02:09.9]} 13. Bb3 {[%clk 0:02:22.4]} 13... Be6 {[%clk
0:02:10]} 14. Bxe6 {[%clk 0:02:19.2]} 14... fxe6 {[%clk 0:02:10.9]} 15. a3
{[%clk 0:02:07.3]} 15... h6 {[%clk 0:02:07.8]} 16. Ra2 {[%clk 0:02:06.8]} 16...
Nh5 {[%clk 0:01:51.3]} 17. d4 {[%clk 0:01:57.9]} 17... Qf6 {[%clk 0:01:40.7]}
18. Nh2 {[%clk 0:01:51.7]} 18... Nhf4 {[%clk 0:01:35.9]} 19. Re3 {[%clk
0:01:36.5]} 19... Rf7 {[%clk 0:01:02.5]} 20. Ng4 {[%clk 0:01:23.8]} 20... Qe7
{[%clk 0:01:02.1]} 21. Qf1 {[%clk 0:01:09.4]} 21... Raf8 {[%clk 0:01:00.8]} 22.
g3 {[%clk 0:01:07]} 22... Nh5 {[%clk 0:00:42.4]} 23. Qd1 {[%clk 0:01:06.9]}
23... Nf6 {[%clk 0:00:40.7]} 24. Nh2 {[%clk 0:01:03.7]} 24... exd4 {[%clk
0:00:40.6]} 25. cxd4 {[%clk 0:01:03.9]} 25... d5 {[%clk 0:00:39.1]} 26. exd5
{[%clk 0:00:54]} 26... cxd5 {[%clk 0:00:33.2]} 27. Rae2 {[%clk 0:00:49.2]} 27...
Ne4 {[%clk 0:00:31]} 28. f4 {[%clk 0:00:35]} 28... Qc7 {[%clk 0:00:22]} 29. Bb2
{[%clk 0:00:33.6]} 29... Rc8 {[%clk 0:00:19]} 30. Ng4 {[%clk 0:00:33.5]} 30...
Qc4 {[%clk 0:00:15.1]} 31. Nf2 {[%clk 0:00:32.1]} 31... Nxf2 {[%clk 0:00:12.9]}
32. Rxf2 {[%clk 0:00:33]} 32... Rc6 {[%clk 0:00:11.3]} 33. Rc3 {[%clk
0:00:29.8]} 33... Qa2 {[%clk 0:00:10.5]} 34. Rxc6 {[%clk 0:00:28]} 34... bxc6
{[%clk 0:00:11.4]} 35. Qe1 {[%clk 0:00:26.6]} 35... Nf8 {[%clk 0:00:11.2]} 36.
g4 {[%clk 0:00:26.2]} 36... Qb3 {[%clk 0:00:10.8]} 37. Kg2 {[%clk 0:00:24.7]}
37... Qd3 {[%clk 0:00:10.4]} 38. Rf3 {[%clk 0:00:21.2]} 38... Qg6 {[%clk
0:00:10.3]} 39. Bc1 {[%clk 0:00:19.8]} 39... h5 {[%clk 0:00:10.8]} 40. Rg3
{[%clk 0:00:19.1]} 40... hxg4 {[%clk 0:00:10.4]} 41. hxg4 {[%clk 0:00:19.1]}
41... Qc2+ {[%clk 0:00:10]} 42. Kg1 {[%clk 0:00:16.6]} 42... Ng6 {[%clk
0:00:10.5]} 43. f5 {[%clk 0:00:13.3]} 43... exf5 {[%clk 0:00:10]} 44. gxf5
{[%clk 0:00:14.2]} 44... Qxf5 {[%clk 0:00:09.2]} 45. Bg5 {[%clk 0:00:12.8]}
45... Nf4 {[%clk 0:00:05]} 46. Qe3 {[%clk 0:00:09]} 46... Qe4 {[%clk 0:00:02.1]}
47. Qxe4 {[%clk 0:00:04.4]} 47... dxe4 {[%clk 0:00:03]} 48. Re3 {[%clk
0:00:03.9]} 48... Rf5 {[%clk 0:00:02.2]} 49. Be7 {[%clk 0:00:02.7]} 49... Nd3
{[%clk 0:00:01.9]} 50. Rxe4 {[%clk 0:00:02.8]} 50... Nf2 {[%clk 0:00:01.8]} 51.
Bc5 {[%clk 0:00:02.9]} 51... Nxe4 {[%clk 0:00:02.1]} 52. Kg2 {[%clk 0:00:03.2]}
52... Nxc5 {[%clk 0:00:02.3]} 53. Kg1 {[%clk 0:00:04.1]} 53... Rd5 {[%clk
0:00:02.5]} 54. a4 {[%clk 0:00:04.5]} 54... Rxd4 {[%clk 0:00:02.8]} 0-1